[Event "*** Titled Tuesday Blitz"]
[Site "Chess.com"]
[Date "2021.02.16"]
[Round "10"]
[White "Danfii"]
[Black "Andrakhanova"]
[Result "1-0"]
[WhiteElo "2420"]
[BlackElo "2275"]
[TimeControl "180+1"]
[EndTime "11:58:39 PST"]
[Termination "Danfii won by resignation"]

1. e4 {[%clk 0:03:00.9]} 1... c5 {[%clk 0:02:59.7]} 2. Nf3 {[%clk 0:03:00.9]}
2... e6 {[%clk 0:03:00.6]} 3. d4 {[%clk 0:03:01.2]} 3... cxd4 {[%clk 0:03:00.2]}
4. Nxd4 {[%clk 0:03:02.1]} 4... Nf6 {[%clk 0:03:00.6]} 5. Nc3 {[%clk 0:03:02]}
5... Nc6 {[%clk 0:03:00.7]} 6. Ndb5 {[%clk 0:03:02.4]} 6... d6 {[%clk
0:02:59.3]} 7. Bf4 {[%clk 0:03:02.1]} 7... e5 {[%clk 0:02:59.5]} 8. Bg5 {[%clk
0:03:02.7]} 8... a6 {[%clk 0:02:58.9]} 9. Na3 {[%clk 0:03:03]} 9... b5 {[%clk
0:02:59.2]} 10. Nd5 {[%clk 0:03:03.5]} 10... Be7 {[%clk 0:02:59.3]} 11. Bxf6
{[%clk 0:03:04.1]} 11... Bxf6 {[%clk 0:03:00.2]} 12. c4 {[%clk 0:03:04.8]} 12...
b4 {[%clk 0:02:59.4]} 13. Nc2 {[%clk 0:03:05.4]} 13... a5 {[%clk 0:02:59.9]} 14.
Qf3 {[%clk 0:03:05.6]} 14... O-O {[%clk 0:02:59.3]} 15. h4 {[%clk 0:03:04.6]}
15... Be6 {[%clk 0:02:57.7]} 16. Rd1 {[%clk 0:03:03.7]} 16... Rb8 {[%clk
0:02:53.4]} 17. b3 {[%clk 0:03:03.6]} 17... Bxd5 {[%clk 0:02:50.7]} 18. Rxd5
{[%clk 0:03:03.3]} 18... Nd4 {[%clk 0:02:49.4]} 19. Nxd4 {[%clk 0:03:02.3]}
19... exd4 {[%clk 0:02:50.3]} 20. Bd3 {[%clk 0:02:52]} 20... Re8 {[%clk
0:02:39.8]} 21. g3 {[%clk 0:02:48.7]} 21... a4 {[%clk 0:02:39]} 22. O-O {[%clk
0:02:48.2]} 22... axb3 {[%clk 0:02:38.9]} 23. axb3 {[%clk 0:02:49.1]} 23... Qe7
{[%clk 0:02:21.6]} 24. Qf4 {[%clk 0:02:35.5]} 24... Be5 {[%clk 0:02:19.2]} 25.
Qg4 {[%clk 0:02:35.8]} 25... g6 {[%clk 0:02:17.6]} 26. h5 {[%clk 0:02:31.5]}
26... Bg7 {[%clk 0:02:09.3]} 27. Ra1 {[%clk 0:02:23.2]} 27... Ra8 {[%clk
0:02:08.6]} 28. Rxa8 {[%clk 0:02:19]} 28... Rxa8 {[%clk 0:02:09.5]} 29. Rb5
{[%clk 0:02:18.8]} 29... Ra3 {[%clk 0:01:51.1]} 30. Rxb4 {[%clk 0:02:11.9]}
30... Ra1+ {[%clk 0:01:51.1]} 31. Kg2 {[%clk 0:02:11.7]} 31... Re1 {[%clk
0:01:38.5]} 32. Rb8+ {[%clk 0:02:11]} 32... Bf8 {[%clk 0:01:38.5]} 33. h6 {[%clk
0:02:03.1]} 33... Ra1 {[%clk 0:01:13.2]} 34. Qf4 {[%clk 0:01:34.8]} 34... Rd1
{[%clk 0:01:07.5]} 35. Be2 {[%clk 0:01:34.2]} 35... Re1 {[%clk 0:01:02.7]} 36.
Bf3 {[%clk 0:01:29.2]} 36... d3 {[%clk 0:00:53.3]} 37. Qd2 {[%clk 0:01:28.6]}
37... Rxe4 {[%clk 0:00:33.7]} 38. Bxe4 {[%clk 0:01:23.1]} 38... Qxe4+ {[%clk
0:00:34.6]} 39. Kg1 {[%clk 0:01:23.5]} 39... f5 {[%clk 0:00:24.9]} 40. Qc3
{[%clk 0:01:14.9]} 40... Qe5 {[%clk 0:00:23.3]} 41. Qxd3 {[%clk 0:01:15.3]}
41... f4 {[%clk 0:00:21.7]} 42. Qd5+ {[%clk 0:01:13.5]} 42... Qxd5 {[%clk
0:00:19.8]} 43. cxd5 {[%clk 0:01:14.4]} 43... Kf7 {[%clk 0:00:20.4]} 44. b4
{[%clk 0:01:11.2]} 44... Bxh6 {[%clk 0:00:18.8]} 45. b5 {[%clk 0:01:11.8]} 45...
fxg3 {[%clk 0:00:19.7]} 46. fxg3 {[%clk 0:01:11.4]} 46... Be3+ {[%clk
0:00:17.8]} 47. Kg2 {[%clk 0:01:12.1]} 47... Kf6 {[%clk 0:00:18.2]} 48. b6
{[%clk 0:01:12.5]} 48... Bxb6 {[%clk 0:00:16.5]} 49. Rxb6 {[%clk 0:01:13.4]}
49... Ke5 {[%clk 0:00:17.4]} 50. Rb7 {[%clk 0:01:13.3]} 50... Kxd5 {[%clk
0:00:14.3]} 51. Rxh7 {[%clk 0:01:13.5]} 1-0

[Event "*** Titled Tuesday Blitz"]
[Site "Chess.com"]
[Date "2021.02.16"]
[Round "10"]
[White "CraiggoryC"]
[Black "onetowin"]
[Result "1-0"]
[WhiteElo "2209"]
[BlackElo "2015"]
[TimeControl "180+1"]
[EndTime "11:58:43 PST"]
[Termination "CraiggoryC won by resignation"]

1. e4 {[%clk 0:03:00.9]} 1... b6 {[%clk 0:02:59.4]} 2. d4 {[%clk 0:03:00.4]}
2... Bb7 {[%clk 0:02:59.6]} 3. Bd3 {[%clk 0:03:01.1]} 3... e6 {[%clk 0:02:59.8]}
4. Ne2 {[%clk 0:03:00.1]} 4... Nf6 {[%clk 0:02:46.5]} 5. Nbc3 {[%clk 0:02:59.4]}
5... c5 {[%clk 0:02:36.3]} 6. dxc5 {[%clk 0:02:37.8]} 6... Bxc5 {[%clk
0:02:37.2]} 7. O-O {[%clk 0:02:34.4]} 7... d5 {[%clk 0:02:31.1]} 8. e5 {[%clk
0:02:33.5]} 8... Nfd7 {[%clk 0:02:03.8]} 9. Bf4 {[%clk 0:02:32.7]} 9... Nc6
{[%clk 0:02:03.4]} 10. Ng3 {[%clk 0:02:16.8]} 10... Ndxe5 {[%clk 0:01:59.6]} 11.
Bxe5 {[%clk 0:02:04.5]} 11... Nxe5 {[%clk 0:02:00.5]} 12. Bb5+ {[%clk
0:02:04.2]} 12... Bc6 {[%clk 0:01:56.9]} 13. Re1 {[%clk 0:01:37.8]} 13... Bxb5
{[%clk 0:01:45.6]} 14. Rxe5 {[%clk 0:01:37.3]} 14... Qd6 {[%clk 0:01:32.3]} 15.
Rg5 {[%clk 0:01:15.8]} 15... Bxf2+ {[%clk 0:01:26.8]} 16. Kxf2 {[%clk
0:01:05.8]} 16... Qf4+ {[%clk 0:01:26.6]} 17. Qf3 {[%clk 0:01:04.7]} 17... Qxg5
{[%clk 0:01:21.8]} 18. Nxb5 {[%clk 0:01:03.6]} 18... O-O {[%clk 0:01:18.8]} 19.
Kg1 {[%clk 0:00:59.1]} 19... a6 {[%clk 0:01:14.5]} 20. Nd4 {[%clk 0:00:53]}
20... Rac8 {[%clk 0:01:11.4]} 21. c3 {[%clk 0:00:52.7]} 21... e5 {[%clk
0:01:06.5]} 22. Ndf5 {[%clk 0:00:41.9]} 22... e4 {[%clk 0:00:59.7]} 23. Qe2
{[%clk 0:00:34.6]} 23... g6 {[%clk 0:00:59.1]} 24. Ne3 {[%clk 0:00:23.3]} 24...
Rfd8 {[%clk 0:00:48.6]} 25. Rd1 {[%clk 0:00:20.5]} 25... f5 {[%clk 0:00:26.9]}
26. Nxd5 {[%clk 0:00:17.6]} 26... f4 {[%clk 0:00:24.4]} 27. Nxe4 {[%clk
0:00:17.4]} 27... Qh5 {[%clk 0:00:14.8]} 28. Nef6+ {[%clk 0:00:16.1]} 28... Kf7
{[%clk 0:00:12.3]} 29. Nxh5 {[%clk 0:00:16.2]} 29... gxh5 {[%clk 0:00:12.6]} 30.
Qxh5+ {[%clk 0:00:16.3]} 1-0

[Event "*** Titled Tuesday Blitz"]
[Site "Chess.com"]
[Date "2021.02.16"]
[Round "10"]
[White "Balla_Tamas"]
[Black "ARTHURMOTIVATOR"]
[Result "1-0"]
[WhiteElo "2453"]
[BlackElo "2329"]
[TimeControl "180+1"]
[EndTime "11:58:46 PST"]
[Termination "Balla_Tamas won by resignation"]

1. b3 {[%clk 0:03:00.9]} 1... e5 {[%clk 0:02:55.3]} 2. Bb2 {[%clk 0:03:01.8]}
2... Nc6 {[%clk 0:02:53.1]} 3. e3 {[%clk 0:03:00.8]} 3... Nf6 {[%clk 0:02:52.7]}
4. Bb5 {[%clk 0:02:59.7]} 4... Bd6 {[%clk 0:02:52.4]} 5. Na3 {[%clk 0:02:58.9]}
5... a6 {[%clk 0:02:49.5]} 6. Be2 {[%clk 0:02:57.7]} 6... O-O {[%clk 0:02:47.6]}
7. Nc4 {[%clk 0:02:57.2]} 7... Qe7 {[%clk 0:02:34.6]} 8. Nxd6 {[%clk 0:02:55.7]}
8... cxd6 {[%clk 0:02:33.9]} 9. d3 {[%clk 0:02:55.1]} 9... d5 {[%clk 0:02:34]}
10. Nf3 {[%clk 0:02:53.3]} 10... d6 {[%clk 0:02:34]} 11. O-O {[%clk 0:02:52.6]}
11... Bg4 {[%clk 0:02:32.8]} 12. c4 {[%clk 0:02:52.2]} 12... dxc4 {[%clk
0:02:29.6]} 13. dxc4 {[%clk 0:02:50.7]} 13... Ne4 {[%clk 0:02:25.1]} 14. Nxe5
{[%clk 0:02:37.9]} 14... dxe5 {[%clk 0:01:56.1]} 15. Bxg4 {[%clk 0:02:36.4]}
15... Rad8 {[%clk 0:01:57]} 16. Qc2 {[%clk 0:02:30.6]} 16... f5 {[%clk
0:01:44.1]} 17. Bxf5 {[%clk 0:02:28.1]} 17... Nd2 {[%clk 0:00:59.3]} 18. Bxh7+
{[%clk 0:02:22.7]} 18... Kh8 {[%clk 0:00:58.1]} 19. Rfd1 {[%clk 0:02:22]} 19...
Nb4 {[%clk 0:00:33.8]} 20. Qc1 {[%clk 0:02:07.9]} 20... Kxh7 {[%clk 0:00:21.5]}
21. Rxd2 {[%clk 0:02:07.2]} 21... Nd3 {[%clk 0:00:21.2]} 22. Qc2 {[%clk
0:02:06.4]} 22... e4 {[%clk 0:00:20.9]} 23. Bd4 {[%clk 0:02:04.3]} 23... Qg5
{[%clk 0:00:20]} 24. Rxd3 {[%clk 0:01:57.1]} 24... exd3 {[%clk 0:00:18.9]} 25.
Qxd3+ {[%clk 0:01:58]} 25... Kg8 {[%clk 0:00:18.9]} 26. Rd1 {[%clk 0:01:54.6]}
26... Rd6 {[%clk 0:00:18.9]} 27. Qe4 {[%clk 0:01:49.9]} 27... Rg6 {[%clk
0:00:18.4]} 28. Qxb7 {[%clk 0:01:46.5]} 28... Qf5 {[%clk 0:00:16.7]} 29. Qd5+
{[%clk 0:01:43.4]} 29... Qxd5 {[%clk 0:00:12.6]} 30. cxd5 {[%clk 0:01:44.3]}
30... Rd8 {[%clk 0:00:10.2]} 31. e4 {[%clk 0:01:44.3]} 31... a5 {[%clk 0:00:09]}
32. f3 {[%clk 0:01:44]} 32... Ra6 {[%clk 0:00:08.4]} 33. Bc5 {[%clk 0:01:42.5]}
33... a4 {[%clk 0:00:08.1]} 34. b4 {[%clk 0:01:42.6]} 34... a3 {[%clk
0:00:08.5]} 35. e5 {[%clk 0:01:42.3]} 35... Raa8 {[%clk 0:00:06.8]} 36. e6
{[%clk 0:01:41.4]} 36... Re8 {[%clk 0:00:05.9]} 37. Kf2 {[%clk 0:01:40.1]} 37...
Rad8 {[%clk 0:00:05.4]} 38. Ke2 {[%clk 0:01:38.3]} 38... Kh7 {[%clk 0:00:02.7]}
39. Rd3 {[%clk 0:01:38.1]} 39... Kg6 {[%clk 0:00:02.9]} 40. b5 {[%clk
0:01:37.2]} 40... Ra8 {[%clk 0:00:01.5]} 41. Bxa3 {[%clk 0:01:29.6]} 41... Rac8
{[%clk 0:00:02.4]} 42. Rd2 {[%clk 0:01:27.9]} 42... Rc4 {[%clk 0:00:01.8]} 43.
b6 {[%clk 0:01:26.4]} 43... Ra4 {[%clk 0:00:02.7]} 44. Bc5 {[%clk 0:01:21.7]}
44... Ra6 {[%clk 0:00:03.6]} 45. b7 {[%clk 0:01:20.8]} 45... Ra4 {[%clk
0:00:04.2]} 46. Rb2 {[%clk 0:01:19.7]} 46... Rc4 {[%clk 0:00:05.1]} 47. b8=Q
{[%clk 0:01:19.1]} 47... Rxb8 {[%clk 0:00:04.6]} 48. Rxb8 {[%clk 0:01:20]} 48...
Rxc5 {[%clk 0:00:05.4]} 49. e7 {[%clk 0:01:20.4]} 49... Rxd5 {[%clk 0:00:05.3]}
50. e8=Q+ {[%clk 0:01:20.3]} 1-0

[Event "*** Titled Tuesday Blitz"]
[Site "Chess.com"]
[Date "2021.02.16"]
[Round "10"]
[White "profofchess"]
[Black "Supernotar"]
[Result "0-1"]
[WhiteElo "2439"]
[BlackElo "2734"]
[TimeControl "180+1"]
[EndTime "11:58:52 PST"]
[Termination "Supernotar won by resignation"]

1. e4 {[%clk 0:03:00.9]} 1... c6 {[%clk 0:02:58.9]} 2. Nf3 {[%clk 0:03:00.6]}
2... d5 {[%clk 0:02:59.8]} 3. Nc3 {[%clk 0:03:01.1]} 3... Bg4 {[%clk 0:02:59.3]}
4. d4 {[%clk 0:03:01.7]} 4... dxe4 {[%clk 0:02:58.3]} 5. Nxe4 {[%clk 0:03:02]}
5... Nd7 {[%clk 0:02:57.7]} 6. h3 {[%clk 0:02:56.3]} 6... Bh5 {[%clk 0:02:57.7]}
7. Qe2 {[%clk 0:02:54]} 7... e6 {[%clk 0:02:57.7]} 8. Bf4 {[%clk 0:02:53]} 8...
Ndf6 {[%clk 0:02:55.9]} 9. O-O-O {[%clk 0:02:41.4]} 9... Nxe4 {[%clk 0:02:54.1]}
10. Qxe4 {[%clk 0:02:41.5]} 10... Bg6 {[%clk 0:02:54.4]} 11. Qe5 {[%clk
0:02:32.2]} 11... Nf6 {[%clk 0:02:49.9]} 12. Bc4 {[%clk 0:02:22.1]} 12... Be7
{[%clk 0:02:48]} 13. h4 {[%clk 0:02:05.1]} 13... h6 {[%clk 0:02:42.2]} 14. h5
{[%clk 0:01:57.5]} 14... Bh7 {[%clk 0:02:42.5]} 15. g4 {[%clk 0:01:50.6]} 15...
Nd5 {[%clk 0:02:27.8]} 16. Bxd5 {[%clk 0:01:36.2]} 16... cxd5 {[%clk 0:02:25.3]}
17. g5 {[%clk 0:00:40.4]} 17... hxg5 {[%clk 0:02:13.2]} 18. h6 {[%clk
0:00:40.4]} 18... Bf6 {[%clk 0:00:43.5]} 19. hxg7 {[%clk 0:00:40]} 19... Rg8
{[%clk 0:00:40.2]} 20. Qe2 {[%clk 0:00:22.9]} 20... Rxg7 {[%clk 0:00:31.8]} 21.
Be5 {[%clk 0:00:21.4]} 21... Rc8 {[%clk 0:00:29.9]} 22. Rd2 {[%clk 0:00:20.9]}
22... Bxe5 {[%clk 0:00:25.8]} 23. Nxe5 {[%clk 0:00:20.7]} 23... Qa5 {[%clk
0:00:21.2]} 24. a3 {[%clk 0:00:18.7]} 24... Qc7 {[%clk 0:00:16.7]} 25. Qh5
{[%clk 0:00:12.5]} 25... Bxc2 {[%clk 0:00:14.3]} 26. Qh8+ {[%clk 0:00:11.8]}
26... Ke7 {[%clk 0:00:14.5]} 27. Qxg7 {[%clk 0:00:11.7]} 27... Bd3+ {[%clk
0:00:10.8]} 0-1

[Event "*** Titled Tuesday Blitz"]
[Site "Chess.com"]
[Date "2021.02.16"]
[Round "10"]
[White "ChessWarrior7197"]
[Black "Krakozia"]
[Result "1/2-1/2"]
[WhiteElo "2966"]
[BlackElo "2852"]
[TimeControl "180+1"]
[EndTime "11:58:53 PST"]
[Termination "Game drawn - insufficient material"]

1. e4 {[%clk 0:03:00.9]} 1... e5 {[%clk 0:03:00.2]} 2. Nf3 {[%clk 0:02:59.9]}
2... Nc6 {[%clk 0:03:00.7]} 3. Bb5 {[%clk 0:03:00.3]} 3... Nf6 {[%clk
0:03:01.3]} 4. O-O {[%clk 0:02:58]} 4... Nxe4 {[%clk 0:03:00.5]} 5. d4 {[%clk
0:02:58.5]} 5... Nd6 {[%clk 0:03:01.2]} 6. Bxc6 {[%clk 0:02:59.2]} 6... dxc6
{[%clk 0:03:02.1]} 7. dxe5 {[%clk 0:03:00.1]} 7... Nf5 {[%clk 0:03:02.8]} 8.
Qxd8+ {[%clk 0:03:01]} 8... Kxd8 {[%clk 0:03:03.5]} 9. h3 {[%clk 0:03:01.9]}
9... Ke8 {[%clk 0:03:02.2]} 10. Nc3 {[%clk 0:03:01.2]} 10... h5 {[%clk
0:03:02.8]} 11. Bf4 {[%clk 0:03:00.6]} 11... Be7 {[%clk 0:03:02.9]} 12. Rad1
{[%clk 0:03:00.9]} 12... Be6 {[%clk 0:03:03.6]} 13. Ng5 {[%clk 0:03:00.5]} 13...
Rh6 {[%clk 0:03:04.2]} 14. Rfe1 {[%clk 0:03:00.9]} 14... Bb4 {[%clk 0:03:04]}
15. a3 {[%clk 0:03:00.8]} 15... Bxc3 {[%clk 0:03:04.3]} 16. bxc3 {[%clk
0:03:01.7]} 16... h4 {[%clk 0:03:05.2]} 17. g4 {[%clk 0:02:59.5]} 17... hxg3
{[%clk 0:03:04.5]} 18. fxg3 {[%clk 0:03:00.4]} 18... Ne7 {[%clk 0:02:59.1]} 19.
h4 {[%clk 0:03:00.6]} 19... Kf8 {[%clk 0:02:49.6]} 20. Bc1 {[%clk 0:02:36.3]}
20... Re8 {[%clk 0:02:44.1]} 21. Rf1 {[%clk 0:02:29.8]} 21... Kg8 {[%clk
0:02:39]} 22. Rd4 {[%clk 0:02:24.7]} 22... Rh5 {[%clk 0:02:22.8]} 23. Nxe6
{[%clk 0:02:20.5]} 23... fxe6 {[%clk 0:02:23.7]} 24. Bg5 {[%clk 0:02:20.9]}
24... Ng6 {[%clk 0:02:07.5]} 25. Rd7 {[%clk 0:02:15]} 25... Nxe5 {[%clk
0:02:07.2]} 26. Rxc7 {[%clk 0:02:15.4]} 26... b5 {[%clk 0:02:06.6]} 27. Rxa7
{[%clk 0:02:10.6]} 27... Rh7 {[%clk 0:02:06.5]} 28. a4 {[%clk 0:02:00.6]} 28...
g6 {[%clk 0:02:05.8]} 29. Rxh7 {[%clk 0:01:58.6]} 29... Kxh7 {[%clk 0:02:06.7]}
30. a5 {[%clk 0:01:58.6]} 30... Ra8 {[%clk 0:02:05.7]} 31. Ra1 {[%clk
0:01:58.7]} 31... Ra6 {[%clk 0:01:50.1]} 32. Kf2 {[%clk 0:01:48.3]} 32... Nc4
{[%clk 0:01:44.9]} 33. Bd8 {[%clk 0:01:40.8]} 33... Kg7 {[%clk 0:01:32.8]} 34.
g4 {[%clk 0:01:34.4]} 34... e5 {[%clk 0:01:23.6]} 35. Kf3 {[%clk 0:01:29.6]}
35... Kf7 {[%clk 0:01:21]} 36. h5 {[%clk 0:01:28.4]} 36... gxh5 {[%clk
0:01:20.6]} 37. gxh5 {[%clk 0:01:29.3]} 37... Ra8 {[%clk 0:01:15.5]} 38. Bg5
{[%clk 0:01:29.7]} 38... Rxa5 {[%clk 0:01:12.9]} 39. Rxa5 {[%clk 0:01:20.9]}
39... Nxa5 {[%clk 0:01:13.8]} 40. Ke4 {[%clk 0:01:21.4]} 40... Nc4 {[%clk
0:01:13.8]} 41. Kf5 {[%clk 0:01:21.9]} 41... Kg7 {[%clk 0:01:03.4]} 42. Bf6+
{[%clk 0:01:04.5]} 42... Kh6 {[%clk 0:01:03]} 43. Kg4 {[%clk 0:01:02.1]} 43...
Ne3+ {[%clk 0:01:00.2]} 44. Kh4 {[%clk 0:01:01]} 44... Nxc2 {[%clk 0:00:51.9]}
45. Be7 {[%clk 0:01:01.4]} 45... e4 {[%clk 0:00:47.7]} 46. Bg5+ {[%clk
0:00:58.6]} 46... Kh7 {[%clk 0:00:47.4]} 47. Kg4 {[%clk 0:00:59.5]} 47... c5
{[%clk 0:00:44.6]} 48. Kf4 {[%clk 0:00:54.2]} 48... e3 {[%clk 0:00:44.7]} 49.
Kf3 {[%clk 0:00:52.4]} 49... b4 {[%clk 0:00:44.5]} 50. cxb4 {[%clk 0:00:53.3]}
50... cxb4 {[%clk 0:00:45.4]} 51. Bxe3 {[%clk 0:00:53.1]} 51... Nxe3 {[%clk
0:00:42.2]} 52. Kxe3 {[%clk 0:00:54]} 52... Kh6 {[%clk 0:00:42.5]} 53. Kd3
{[%clk 0:00:54.2]} 53... Kxh5 {[%clk 0:00:42.9]} 54. Kc4 {[%clk 0:00:54.4]}
54... b3 {[%clk 0:00:43.3]} 55. Kxb3 {[%clk 0:00:55.1]} 1/2-1/2

[Event "*** Titled Tuesday Blitz"]
[Site "Chess.com"]
[Date "2021.02.16"]
[Round "10"]
[White "ChristopherYoo"]
[Black "IwkooO"]
[Result "1-0"]
[WhiteElo "2887"]
[BlackElo "2624"]
[TimeControl "180+1"]
[EndTime "11:58:54 PST"]
[Termination "ChristopherYoo won by resignation"]

1. d4 {[%clk 0:03:00.9]} 1... Nf6 {[%clk 0:02:57.1]} 2. Nf3 {[%clk 0:03:01.2]}
2... e6 {[%clk 0:02:57.4]} 3. c4 {[%clk 0:03:01.3]} 3... Bb4+ {[%clk 0:02:56.1]}
4. Bd2 {[%clk 0:03:01.2]} 4... Qe7 {[%clk 0:02:53.5]} 5. e3 {[%clk 0:03:01.1]}
5... b6 {[%clk 0:02:51.1]} 6. a3 {[%clk 0:03:00.2]} 6... Bxd2+ {[%clk 0:02:51]}
7. Nbxd2 {[%clk 0:03:01.1]} 7... Bb7 {[%clk 0:02:51.7]} 8. Bd3 {[%clk
0:03:01.2]} 8... d6 {[%clk 0:02:51.3]} 9. O-O {[%clk 0:03:01.2]} 9... O-O {[%clk
0:02:51.9]} 10. e4 {[%clk 0:03:01]} 10... e5 {[%clk 0:02:51.9]} 11. Re1 {[%clk
0:03:01.2]} 11... a5 {[%clk 0:02:49.7]} 12. dxe5 {[%clk 0:03:00.9]} 12... dxe5
{[%clk 0:02:49.9]} 13. Nf1 {[%clk 0:03:01.2]} 13... Nbd7 {[%clk 0:02:46.9]} 14.
Ne3 {[%clk 0:03:00.7]} 14... Nc5 {[%clk 0:02:45.7]} 15. Nd5 {[%clk 0:02:56.1]}
15... Qd6 {[%clk 0:02:26.3]} 16. Qc2 {[%clk 0:02:37]} 16... Bxd5 {[%clk
0:02:13.6]} 17. cxd5 {[%clk 0:02:31.9]} 17... c6 {[%clk 0:02:13.6]} 18. Bc4
{[%clk 0:02:11.4]} 18... cxd5 {[%clk 0:01:31.1]} 19. Bxd5 {[%clk 0:01:43.9]}
19... Rac8 {[%clk 0:01:20.8]} 20. Rad1 {[%clk 0:01:39.8]} 20... Qe7 {[%clk
0:01:09.3]} 21. Qe2 {[%clk 0:01:34.5]} 21... Rfd8 {[%clk 0:01:05.2]} 22. Qb5
{[%clk 0:01:26.3]} 22... Qc7 {[%clk 0:00:51.4]} 23. Rc1 {[%clk 0:00:52.3]} 23...
Nxd5 {[%clk 0:00:30.5]} 24. exd5 {[%clk 0:00:51.3]} 24... f6 {[%clk 0:00:30.6]}
25. b4 {[%clk 0:00:42]} 25... axb4 {[%clk 0:00:30.5]} 26. axb4 {[%clk
0:00:42.9]} 26... Qd7 {[%clk 0:00:30.9]} 27. Qxb6 {[%clk 0:00:32.8]} 27... Nd3
{[%clk 0:00:30.8]} 28. Rxc8 {[%clk 0:00:32.6]} 28... Rxc8 {[%clk 0:00:31.7]} 29.
Rd1 {[%clk 0:00:31.7]} 29... Qxd5 {[%clk 0:00:31.8]} 30. h3 {[%clk 0:00:22.8]}
30... e4 {[%clk 0:00:23.2]} 31. Ne1 {[%clk 0:00:22.8]} 31... Rd8 {[%clk
0:00:19.2]} 32. f3 {[%clk 0:00:16.8]} 32... Qb3 {[%clk 0:00:18.9]} 33. Qxd8+
{[%clk 0:00:16.2]} 33... Kf7 {[%clk 0:00:16.6]} 34. Rxd3 {[%clk 0:00:16]} 34...
exd3 {[%clk 0:00:16.7]} 35. Nxd3 {[%clk 0:00:16.4]} 35... Qd1+ {[%clk
0:00:15.9]} 36. Kh2 {[%clk 0:00:16.5]} 1-0

[Event "*** Titled Tuesday Blitz"]
[Site "Chess.com"]
[Date "2021.02.16"]
[Round "10"]
[White "Nemsko"]
[Black "AlexSuv"]
[Result "0-1"]
[WhiteElo "2335"]
[BlackElo "2458"]
[TimeControl "180+1"]
[EndTime "11:58:54 PST"]
[Termination "AlexSuv won on time"]

1. e4 {[%clk 0:03:00.9]} 1... c5 {[%clk 0:02:39.7]} 2. Nf3 {[%clk 0:03:00.9]}
2... e6 {[%clk 0:02:39.9]} 3. d4 {[%clk 0:03:01.3]} 3... cxd4 {[%clk 0:02:40.8]}
4. Nxd4 {[%clk 0:03:02.1]} 4... Nc6 {[%clk 0:02:41.2]} 5. Nc3 {[%clk 0:03:02]}
5... Qc7 {[%clk 0:02:41.4]} 6. Be3 {[%clk 0:02:59.6]} 6... a6 {[%clk 0:02:41.1]}
7. Bd3 {[%clk 0:02:59.3]} 7... Nf6 {[%clk 0:02:40]} 8. f3 {[%clk 0:02:51]} 8...
Nxd4 {[%clk 0:02:37]} 9. Bxd4 {[%clk 0:02:51.2]} 9... Bc5 {[%clk 0:02:37.5]} 10.
Be2 {[%clk 0:02:42.1]} 10... e5 {[%clk 0:02:29.4]} 11. Bxc5 {[%clk 0:02:40]}
11... Qxc5 {[%clk 0:02:30.3]} 12. Qd2 {[%clk 0:02:40.5]} 12... O-O {[%clk
0:02:22.5]} 13. O-O-O {[%clk 0:02:40.4]} 13... Ne8 {[%clk 0:01:51.4]} 14. g4
{[%clk 0:02:34.7]} 14... d6 {[%clk 0:01:50]} 15. Nd5 {[%clk 0:02:30.6]} 15...
Be6 {[%clk 0:01:46.3]} 16. Kb1 {[%clk 0:02:23.8]} 16... Kh8 {[%clk 0:01:28.6]}
17. h4 {[%clk 0:02:16.2]} 17... Rc8 {[%clk 0:01:25.6]} 18. g5 {[%clk 0:02:07.6]}
18... Bxd5 {[%clk 0:01:19.5]} 19. exd5 {[%clk 0:02:07.5]} 19... f5 {[%clk
0:01:20.1]} 20. f4 {[%clk 0:01:55.3]} 20... e4 {[%clk 0:01:18.1]} 21. h5 {[%clk
0:01:52.7]} 21... Nc7 {[%clk 0:01:12.4]} 22. h6 {[%clk 0:01:51.6]} 22... g6
{[%clk 0:01:12.8]} 23. c3 {[%clk 0:01:41.9]} 23... Kg8 {[%clk 0:01:09.3]} 24. c4
{[%clk 0:00:48]} 24... b5 {[%clk 0:00:46.8]} 25. Qc3 {[%clk 0:00:45.5]} 25...
Rf7 {[%clk 0:00:45.4]} 26. b4 {[%clk 0:00:13]} 26... Qf2 {[%clk 0:00:36.8]} 27.
Bh5 {[%clk 0:00:08.1]} 27... gxh5 {[%clk 0:00:29.3]} 28. g6 {[%clk 0:00:07.8]}
28... hxg6 {[%clk 0:00:29.4]} 29. Rhg1 {[%clk 0:00:05.3]} 29... Kh7 {[%clk
0:00:29.3]} 30. Rg5 {[%clk 0:00:02.4]} 30... bxc4 {[%clk 0:00:21.5]} 31. Rdg1
{[%clk 0:00:01]} 31... Nb5 {[%clk 0:00:20.2]} 0-1

[Event "*** Titled Tuesday Blitz"]
[Site "Chess.com"]
[Date "2021.02.16"]
[Round "10"]
[White "geordie_derraugh"]
[Black "AsaHoffmann"]
[Result "0-1"]
[WhiteElo "2457"]
[BlackElo "2374"]
[TimeControl "180+1"]
[EndTime "11:58:55 PST"]
[Termination "AsaHoffmann won on time"]

1. e4 {[%clk 0:02:57.4]} 1... d6 {[%clk 0:02:57.9]} 2. d4 {[%clk 0:02:56.9]}
2... Nf6 {[%clk 0:02:53.4]} 3. Nc3 {[%clk 0:02:56.2]} 3... c6 {[%clk 0:02:53.3]}
4. a4 {[%clk 0:02:55.2]} 4... Qa5 {[%clk 0:02:52.1]} 5. Bd3 {[%clk 0:02:53.9]}
5... e5 {[%clk 0:02:51.5]} 6. dxe5 {[%clk 0:02:50.4]} 6... dxe5 {[%clk
0:02:50.8]} 7. Ne2 {[%clk 0:02:48.9]} 7... Be6 {[%clk 0:02:46.2]} 8. O-O {[%clk
0:02:45.5]} 8... Bc5 {[%clk 0:02:42.5]} 9. Bg5 {[%clk 0:02:42.2]} 9... Nbd7
{[%clk 0:02:41.7]} 10. Kh1 {[%clk 0:02:38.1]} 10... h6 {[%clk 0:02:34.7]} 11.
Bh4 {[%clk 0:02:38]} 11... g5 {[%clk 0:02:34.6]} 12. Bg3 {[%clk 0:02:37.9]}
12... Nh5 {[%clk 0:02:30.3]} 13. Qe1 {[%clk 0:02:03.3]} 13... O-O-O {[%clk
0:02:25.8]} 14. f3 {[%clk 0:01:52.3]} 14... Nf4 {[%clk 0:02:19.9]} 15. Bf2
{[%clk 0:01:47.4]} 15... h5 {[%clk 0:02:09.8]} 16. Nc1 {[%clk 0:01:21]} 16...
Bxf2 {[%clk 0:02:03.8]} 17. Qxf2 {[%clk 0:01:19.5]} 17... Qc5 {[%clk 0:02:03.3]}
18. Qg3 {[%clk 0:01:08.9]} 18... h4 {[%clk 0:01:58.2]} 19. Qe1 {[%clk
0:01:09.2]} 19... h3 {[%clk 0:01:57.1]} 20. g3 {[%clk 0:01:09.3]} 20... Ng2
{[%clk 0:01:55.3]} 21. Qe2 {[%clk 0:01:08]} 21... Qe3 {[%clk 0:01:50.1]} 22. Re1
{[%clk 0:00:48.4]} 22... Qxe2 {[%clk 0:01:42.2]} 23. Rxe2 {[%clk 0:00:49.3]}
23... Nc5 {[%clk 0:01:41.7]} 24. b3 {[%clk 0:00:41]} 24... a5 {[%clk 0:01:38.6]}
25. Nd1 {[%clk 0:00:34]} 25... g4 {[%clk 0:01:36.4]} 26. fxg4 {[%clk 0:00:31.7]}
26... Bxg4 {[%clk 0:01:35.5]} 27. Rd2 {[%clk 0:00:28.8]} 27... Bxd1 {[%clk
0:01:30.3]} 28. Rxd1 {[%clk 0:00:27.4]} 28... Nxe4 {[%clk 0:01:29]} 29. Rf1
{[%clk 0:00:23.2]} 29... Nc5 {[%clk 0:01:15.9]} 30. Rxf7 {[%clk 0:00:15.3]}
30... e4 {[%clk 0:01:14.8]} 31. Be2 {[%clk 0:00:15.3]} 31... Rd2 {[%clk
0:01:12.5]} 32. c4 {[%clk 0:00:13.8]} 32... Rhd8 {[%clk 0:01:07.7]} 33. Rf1
{[%clk 0:00:13.2]} 33... Nxb3 {[%clk 0:01:04.5]} 34. Bg4+ {[%clk 0:00:12.5]}
34... Kb8 {[%clk 0:01:03.6]} 35. Nxb3 {[%clk 0:00:13.2]} 35... Rb2 {[%clk
0:00:59.1]} 36. Nxa5 {[%clk 0:00:12.7]} 36... e3 {[%clk 0:00:58.9]} 37. Bxh3
{[%clk 0:00:12.6]} 37... e2 {[%clk 0:00:53.5]} 38. Rfb1 {[%clk 0:00:06.6]} 38...
Rxb1+ {[%clk 0:00:48.2]} 39. Rxb1 {[%clk 0:00:06.9]} 39... Rd1+ {[%clk 0:00:47]}
40. Kxg2 {[%clk 0:00:03.3]} 40... Rxb1 {[%clk 0:00:38.3]} 0-1